Cogmind - Beta 15 @@@ ROGUE MODE // 2025.08.08 @ 19:54:43 Player: beans Result: Destroyed by 7C-2PM(j) with Overtuned Pulse Rifle Performance ------------- Evolutions (0) 0 Regions Visited (3) 600 Robots Destroyed (16) 80 Value Destroyed (577) 577 Prototype IDs (7) 140 Alien Tech Used (0) 0 Bonus (788) 788 TOTAL SCORE: 2185 Bonus ------- Registered with UFD 300 Met Optimus in HQ 500 Friendly Fire -12 Cogmind --------- Core Integrity 0/250 Matter 225/550 Energy 100/100 System Corruption 0% Temperature Cool (12) Movement Flying (235) Ox2 Location -7/Scraptown Parts ------- > --- POWER (1) -------- (None) > --- PROPULSION (2) --- Makeshift Flight Unit > --- UTILITY (2) ------ Small Storage Unit Matter Compressor > --- WEAPON (2) ------- Gauss Rifle Coil Gun > --- INVENTORY (8) ---- Flightbrick Spectral Analyzer Companion Sword DRS Beacon (Expended) Peak State ------------ > --- POWER ------------ Fission Core > --- PROPULSION ------- Makeshift Flight Unit Makeshift Flight Unit > --- UTILITY ---------- Small Storage Unit Matter Compressor > --- WEAPON ----------- Coil Gun Companion Sword > --- INVENTORY -------- Flightbrick Spectral Analyzer Battle Rifle Gauss Rifle DRS Beacon [Rating: 35] Favorites ----------- Power Fission Core Engine Light Ion Engine Power Core Fission Core Propulsion Makeshift Flight Unit Treads Light Treads Leg Overtuned Titanium Leg Flight Unit Makeshift Flight Unit Utility Small Storage Unit Storage Small Storage Unit Weapon Gauss Rifle Ballistic Gun Gauss Rifle Ballistic Cannon Battle Cannon Slashing Weapon Companion Sword Build | -11 -10 -10 -7 ------- Run | Yrd Mat Sub Scr Slots Evolved . | . . . . Power . | . . . . Propulsion . | . . . . Utility . | . . . . Weapon . | . . . . Parts Attached 17 | 5 . 3 9 Power 2 | 1 . . 1 Engine 1 | 1 . . . Core 1 | . . . 1 Reactor . | . . . . Propulsion 5 | 2 . . 3 Treads 2 | 2 . . . Leg 1 | . . . 1 Wheel . | . . . . Hover . | . . . . Flight 2 | . . . 2 Utility 2 | 1 . . 1 Device . | . . . . Storage 2 | 1 . . 1 Processor . | . . . . Hackware . | . . . . Protection . | . . . . Artifact . | . . . . Weapon 8 | 1 . 3 4 Energy Gun . | . . . . Energy Cannon . | . . . . Ballistic Gun 6 | 1 . 2 3 Ballistic Cannon 1 | . . 1 . Launcher . | . . . . Special Weapon . | . . . . Impact Weapon . | . . . . Slashing Weapon 1 | . . . 1 Piercing Weapon . | . . . . Special Melee Weapon . | . . . . Unidentified Prototypes 1 | . . . 1 Parts Lost 6 | . . 3 3 Power 2 | . . 1 1 Propulsion 3 | . . 2 1 Utility . | . . . . Weapon 1 | . . . 1 Highest Loss Streak 3 | . . 3 3 To Critical Strikes . | . . . . Average Backups 2 | . . . 3 Power . | . . . . Propulsion . | . . . 1 Utility . | . . . . Weapon 1 | . . . 2 Tool/Special . | . . . . Unused Backups 3 | . . . 3 Power . | . . . . Propulsion 1 | . . . 1 Utility 1 | . . . 1 Weapon 1 | . . . 1 Tool/Special . | . . . . Average Slot Usage (%) 80 | . 71 73 82 Engine 3 | . 14 12 . Core 9 | . . . 12 Treads 7 | . 28 25 . Leg 2 | . . . 3 Flight 8 | . . . 11 Storage 23 | . 14 14 27 Ballistic Gun 21 | . 14 16 24 Ballistic Cannon 1 | . . 3 . Slashing Weapon 1 | . . . 1 Peak Build Rating 35 | 5 5 8 35 Average Rating 19 | 3 5 5 25 On Entrance 4 | . 5 5 8 Naked Turns . | . . . . Heaviest Build 29 | 10 10 13 29 Greatest Support 40 | 40 40 40 19 Greatest Overweight (x) 8 | . . 3 8 Average Overweight (x) 2 | . . . 3 Largest Inventory Capacity 8 | 8 8 8 8 Average Capacity 7 | 6 8 8 8 Most Carried 8 | 3 . 6 8 Average Carried 4 | . . . 6 Final Capacity 8 | 8 8 8 8 Final Carried 7 | . . 6 7 Class Distribution -------------------- 100% | Mutant Dominant Class ---------------- Mutant | -10/Materials Mutant | -10/Subcaves Mutant | -7/Scraptown Resources | -11 -10 -10 -7 ----------- Run | Yrd Mat Sub Scr Matter Collected 744 | 250 24 310 160 Remotely . | . . . . Salvage Created 687 | 13 38 311 325 Parts 46 | 2 5 20 19 Haulers Intercepted . | . . . . Recyclers Shooed . | . . . . Parts Field Recycled . | . . . . Retrieved Matter . | . . . . Parts Self-Destructed 10 | . . 10 . Prevented . | . . . . Kills | -11 -10 -10 -7 ------- Run | Yrd Mat Sub Scr Combat Hostiles Destroyed 13 | . . 8 5 Guns 12 | . . 7 5 Cannons 1 | . . 1 . Classes Destroyed 9 | 1 2 3 3 Builder 1 | . 1 . . Tunneler 1 | 1 . . . Mechanic 1 | . 1 . . Swarmer 1 | . . 1 . Sentry 1 | . . 1 . Subdweller 6 | . . 6 . Ranger 1 | . . . 1 Guru 1 | . . . 1 Scrapper 3 | . . . 3 Best Kill Streak 2 | 1 1 2 2 Combat Bots Only 2 | . . 2 2 Max Kills in Single Turn 1 | 1 1 1 1 Gunslinging . | . . . . Exploded . | . . . . Melee . | . . . . Uniques/NPCs Destroyed . | . . . . Combat | -11 -10 -10 -7 -------- Run | Yrd Mat Sub Scr Hostile Shots Fired 96 | . . 56 40 Missed 28 | . . 18 10 Hits 68 | . . 38 30 Projectile 68 | . . 38 30 Critical Strikes 9 | . . 3 6 Damage Taken 1225 | . . 711 514 Core 253 | . . 177 76 Absorbed by Shields . | . . . . Core Remaining (%) 100 | 100 . . . Volleys Fired 72 | 2 6 49 15 Largest 2 | 1 1 2 2 Hottest 58 | 20 20 58 58 Shots Fired 123 | 2 6 85 30 Gun 103 | 2 6 65 30 Cannon 20 | . . 20 . Launcher . | . . . . Special . | . . . . Kinetic 123 | 2 6 85 30 Thermal . | . . . . Explosive . | . . . . Electromagnetic . | . . . . Robot Hit Streak 24 | 1 1 24 11 Robot Miss Streak 3 | 1 3 2 2 Penetration Max 1 | . . . 1 Secondary Targets . | . . . . Shots Hit Robots 86 | 1 2 62 21 Core Hits 31 | 1 2 17 11 Critical Kills 1 | . . . 1 Critical Parts Destroyed 1 | . . . 1 Critical Strikes 3 | . . 1 2 Destroy 2 | . . . 2 Blast 1 | . . 1 . Melee Attacks . | . . . . Impact . | . . . . Slashing . | . . . . Piercing . | . . . . Sneak Attacks . | . . . . Combat Hostiles . | . . . . Follow-up Attacks . | . . . . Damage Inflicted 1173 | 13 27 708 425 Guns 996 | 13 27 531 425 Cannons 177 | . . 177 . Explosions . | . . . . Melee . | . . . . Ramming . | . . . . Kinetic 1173 | 13 27 708 425 Thermal . | . . . . Explosive . | . . . . Electromagnetic . | . . . . Impact . | . . . . Slashing . | . . . . Piercing . | . . . . Highest Corruption . | . . . . Average Corruption . | . . . . Corruption Purged . | . . . . Corruption Blocked . | . . . . Overload Shots . | . . . . Overflow Damage . | . . . . Projectiles . | . . . . Explosions . | . . . . Melee . | . . . . Knockbacks 2 | . . 2 . Impact . | . . . . Kinetic 2 | . . 2 . Secondary . | . . . . Self-Inflicted Damage . | . . . . Shots . | . . . . Rammed . | . . . . Targets Rammed . | . . . . Kicked . | . . . . Crushed . | . . . . Highest Temperature 126 | . . . 126 Average Temperature 53 | . . . 53 Received Heat Transfer 471 | . . 156 315 Siege Activations . | . . . . Martial Activations . | . . . . Shielding Activations . | . . . . Robots Disrupted . | . . . . Combat Hostiles . | . . . . Robots Corrupted . | . . . . Combat Hostiles . | . . . . Parts Fried . | . . . . Impact Corruptions . | . . . . Robots Melted . | . . . . Combat Hostiles . | . . . . Parts Melted . | . . . . Heat Transferred . | . . . . Parts Sabotaged . | . . . . Parts Stolen . | . . . . Parts Stripped . | . . . . Power Chain Reactions . | . . . . Alert | -11 -10 -10 -7 ------- Run | Yrd Mat Sub Scr Maximum Alert Level . | . . . . Low Security (%) 100 | 100 100 . . Level 1 . | . . . . Level 2 . | . . . . Level 3 . | . . . . Level 4 . | . . . . Level 5 . | . . . . High Security . | . . . . Max Security . | . . . . Peak Influence 5 | 5 5 . . Initial 3 | . 3 . . Average . | . . . . Influence Increases 55 | 5 10 40 . Destroy 0b10 Robot/C 40 | . . 40 . Destroy 0b10 Robot/NC 15 | 5 10 . . Influence Decreases 55 | . 10 45 . Entered New Map 5 | . 2 3 . Time Decay 50 | . 8 42 . Squads Dispatched 1 | . 1 . . Investigation . | . . . . Extermination . | . . . . Reinforcement 1 | . 1 . . Assault . | . . . . Garrison . | . . . . Intercept . | . . . . Searches Triggered . | . . . . Construction Impeded . | . . . . Haulers Reinforced . | . . . . Active Scanning Responses . | . . . . Cargo Convoy Interrupts . | . . . . Stealth | -11 -10 -10 -7 --------- Run | Yrd Mat Sub Scr Distress Signals 1 | . 1 . . Communications Jammed . | . . . . Distress Signals . | . . . . Times Spotted 20 | . 4 8 8 Peak Tracking Total 4 | . 3 3 4 Tactical Retreats . | . . . . Traps | -11 -10 -10 -7 ------- Run | Yrd Mat Sub Scr Traps Triggered . | . . . . Indirectly . | . . . . Trap Hack Attempts . | . . . . Triggered . | . . . . Disarmed . | . . . . Reprogrammed . | . . . . Reused . | . . . . Traps Extracted . | . . . . Installed . | . . . . Triggered . | . . . . Machines | -11 -10 -10 -7 ---------- Run | Yrd Mat Sub Scr Machines Disabled . | . . . . Max in Single Turn . | . . . . Machines Repaired . | . . . . Machines Dismantled . | . . . . Machines Sabotaged . | . . . . Overloaded Fab Kills . | . . . . Hacking | -11 -10 -10 -7 --------- Run | Yrd Mat Sub Scr Machines Accessed 6 | . . 1 5 Terminals . | . . . . Fabricators . | . . . . Repair Stations . | . . . . Recycling Units . | . . . . Scanalyzers . | . . . . Garrison Access . | . . . . Total Hacks 36 | . . 5 31 Successful 36 | . . 5 31 Failed . | . . . . Catastrophic . | . . . . Database Lockouts . | . . . . Manual . | . . . . Terminals . | . . . . Fabricators . | . . . . Repair Stations . | . . . . Recycling Units . | . . . . Scanalyzers . | . . . . Garrison Access . | . . . . Terminal Hacks 36 | . . 5 31 Record 35 | . . 5 30 Open Door 1 | . . . 1 Fabricator Hacks . | . . . . Repair Station Hacks . | . . . . Recycling Unit Hacks . | . . . . Scanalyzer . | . . . . Garrison Access Hacks . | . . . . Unauthorized Hacks . | . . . . Terminals . | . . . . Fabricators . | . . . . Repair Stations . | . . . . Recycling Units . | . . . . Scanalyzers . | . . . . Garrison Access . | . . . . Data Cores Recovered . | . . . . Used . | . . . . Hacking Detections . | . . . . Full Trace Events . | . . . . Feedback Events . | . . . . Feedback Blocked . | . . . . Robot Schematics Acquired . | . . . . Robots Built . | . . . . Authchips . | . . . . Time . | . . . . Total Robot Build Rating . | . . . . Part Schematics Acquired . | . . . . Parts Built . | . . . . Authchips . | . . . . Time . | . . . . Total Part Build Rating . | . . . . Parts Repaired . | . . . . Time . | . . . . Parts Recycled . | . . . . Recycled Matter . | . . . . Retrieved Matter . | . . . . Retrieved Components . | . . . . Parts Scanalyzed . | . . . . Part Schematics Acquired . | . . . . Parts Damaged . | . . . . Bothacking | -11 -10 -10 -7 ------------ Run | Yrd Mat Sub Scr Used RIF Installer . | . . . . Robots Hacked . | . . . . Non-combat . | . . . . Combat . | . . . . Robot Hacks Applied . | . . . . Relay Couplers Released . | . . . . Fabnet Peak Effective % . | . . . . Robots Rewired . | . . . . Allies Hacked . | . . . . Hacks Repelled . | . . . . Allies | -11 -10 -10 -7 -------- Run | Yrd Mat Sub Scr Total Allies . | . . . . Largest Group . | . . . . Highest-Rated Group . | . . . . Highest-Rated Ally . | . . . . Total Orders . | . . . . Ally Attacks . | . . . . Total Damage . | . . . . Kills . | . . . . Allies Corrupted . | . . . . Allies Melted 6 | . . . 6 Intel | -11 -10 -10 -7 ------- Run | Yrd Mat Sub Scr Active Infowar (turns) . | . . . . Robot Analysis Total . | . . . . Derelict Logs Recovered 2 | . . 2 . Drone Launches . | . . . . Drone Recoveries . | . . . . Exploration | -11 -10 -10 -7 ------------- Run | Yrd Mat Sub Scr Turns Passed 3895 | 65 176 883 2771 Spaces Moved 1383 | 40 68 316 959 Core 362 | 11 . 27 324 Treads 386 | 29 68 289 . Legs 189 | . . . 189 Wheels . | . . . . Hover . | . . . . Flight 446 | . . . 446 Fastest Speed 50 | 50 160 160 142 Average Speed 212 | 129 160 163 235 Slowest Speed 450 | 160 160 200 450 Overloaded Moves . | . . . . Propulsion Burnouts . | . . . . Robots Hopped . | . . . . Potential Cave-ins . | . . . . Cave-ins Triggered . | . . . . Exploration Rate (%) 27 | 4 17 31 58 Regions Visited 3 Branch Regions 2 Pre-discovered Areas 1 | . . 1 . Known Exits Taken . | . . . . Unknown Exits Taken 3 | 1 1 1 . Scrap Searched 2 | . . . 2 Spaces Dug . | . . . . Terrain Destroyed . | . . . . Melee . | . . . . Projectile . | . . . . AOE . | . . . . Terrain Rammed . | . . . . Walls Destroyed . | . . . . Machines Disabled . | . . . . Actions | -11 -10 -10 -7 --------- Run | Yrd Mat Sub Scr Total 2224 | 51 129 598 1446 Wait 717 | . 56 227 434 Move 1380 | 39 67 315 959 Hop . | . . . . Pick Up 22 | 5 . 4 13 Fast Attach 3 | . . . 3 Attach 13 | 5 . 1 7 Detach 2 | . . . 2 Swap 5 | . . 2 3 Drop 10 | . . . 10 Fire 72 | 2 6 49 15 Melee . | . . . . Ram . | . . . . Kick . | . . . . Crush . | . . . . Escape Stasis . | . . . . Rewire . | . . . . Trap . | . . . . Miscellaneous . | . . . . Route ------- -11/Scrapyard -10/Materials (discovered 2 exits: [*Min] / *Sub) -10/Subcaves (discovered 2 exits: [*Mat] / *Scr) -7/Scraptown History --------- Turn | Location | Event 3 | -11/Scrapyard | Discovered new exit (range 15) 66 | -11/Scrapyard | Entered Materials 154 | -10/Materials | Discovered new exit (range 15) 232 | -10/Materials | Discovered new exit (range 3) 242 | -10/Materials | Entered Subcaves 242 | -10/Subcaves | Learned Materials machine intel 243 | -10/Subcaves | Approached by a straggling Scientist 254 | -10/Subcaves | Learned 2 Materials zone layouts 314 | -10/Subcaves | Build established: Mutant 441 | -10/Subcaves | Discovered new exit (range 10) 442 | -10/Subcaves | Learned location of Zion (-7) 442 | -10/Subcaves | Met a Zionite searching for "candidates" 632 | -10/Subcaves | Visited Clippyterm 637 | -10/Subcaves | Learned Research security intel 637 | -10/Subcaves | Learned Research machine intel 1026 | -10/Subcaves | Scientist uncovered a shortcut to Scraptown 1032 | -10/Subcaves | A Subdweller sparked back to life 1032 | -10/Subcaves | A Subdweller sparked back to life 1032 | -10/Subcaves | A Subdweller sparked back to life 1049 | -10/Subcaves | Core integrity fell below 50% 1077 | -10/Subcaves | Lost 3 parts (1p2n) 1088 | -10/Subcaves | Found Prototype Flight Unit 1125 | -10/Subcaves | Entered Scraptown 1152 | -7/Scraptown | Heard Great Nut preacher, LISTEN AND RECITE! 2205 | -7/Scraptown | Visited The Evicted 2307 | -7/Scraptown | Visited UFD Registry 2307 | -7/Scraptown | Registered with UFD as "Flexikit" 2391 | -7/Scraptown | Visited Research Penetration Think Tank 2499 | -7/Scraptown | Visited Science Testing Area 2576 | -7/Scraptown | Visited Sword Containment 2710 | -7/Scraptown | Visited Supply Room 2789 | -7/Scraptown | Visited Junk Repository 2857 | -7/Scraptown | Visited Abandonware Association 2868 | -7/Scraptown | Learned abandonware demo "OVRCLOCK.EXE" 2878 | -7/Scraptown | Learned abandonware demo "POISON.EXE" 2983 | -7/Scraptown | Visited Infowarlord's Domain 2992 | -7/Scraptown | Found Spectral Analyzer 3082 | -7/Scraptown | Visited Derelict Rescue Squad 3098 | -7/Scraptown | Found DRS Beacon 3368 | -7/Scraptown | Met Optimus 3368 | -7/Scraptown | Accepted into 0bPrime 3768 | -7/Scraptown | Civil war broke out across Scraptown 3834 | -7/Scraptown | Lost 3 allies 3850 | -7/Scraptown | Core integrity fell below 20% 3875 | -7/Scraptown | Lost 4 allies 3896 | -7/Scraptown | Destroyed by 7C-2PM(j) with Overtuned Pulse Rifle Last Messages --------------- 7C-2PM(j) heat spikes uncontrollably. R0-B9A(j): "I knew Optimus was a traitor." UW-G1B(j) heat spikes uncontrollably. UW-G1B(j) cannibalizes Ovr. Titanium Leg to repair Ovr. Titanium Leg. Acquired 70 matter. Slug penetrates UW-G1B(j). Machine disabled. Critical hit (Burn: +50). Gauss Rifle destroyed. Critical hit (Burn: +50). UW-G1B(j) cannibalizes Ovr. Titanium Leg to repair Ovr. Titanium Leg. 7C-2PM(j) cannibalizes Lgt. Deuterium Engine to repair Lgt. Deuterium Engine. Slug penetrates UW-G1B(j). UW-G1B(j) destroyed. R0-B9A(j) suffers critical hit (Destroy). R0-B9A(j) destroyed. Slug penetrates Wall. Map ----- +----------------------------------------------------+ | ?????????????????????????????????????????????????? | | ?????????????????????????????????????????????????? | | ?????????????????????????????????????????????????? | | ?????????????????????????????????????????????????? | | ?????????????????????????????????????????????????? | | ?????????????????????????????????????????????????? | | ?????????????????????????????????????????????????? | | ?????????????????????????????????????????????????? | | ?????????????????????????????????????????????????? | | ??????????????????????????????%*[????????????????? | | ??????????????????????????????=!%????????????????? | | ??????????????????????????????!==????????????????? | | ??????????????????????????????=%=????????????????? | | ??????????????????????????????!!!????????????????? | | ????????##########???????????#% #????????????????? | | ????????#""""""""#???????????#! ##?????#?????????? | | #####???#" & &" "#???????????# !# ???? ""????????? | | """"#???#" "#???????????# " ???? "????????? | | " #???#"" ""#???????????# # "#?" ????????? | | #???#" "#?????##????# " "## ?????????? | | #" #???#"" [ ""#?#####;##### # """ ??????????? | | #" #???#" "#?#]]#=!*#[!# # #??????????? | | #" #???#"" ""#?#[!# #!/# #" "##"????????? | | "" #???# #?#] # # # #" """????????? | | #???# #?# %= # # ??????????? | | #???# #?# !![@= # #""""????????????? | | ####???#### #####?#####j##### ## #?????????????? | | ########### ###########*##### ## ##????????????? | | """"""""""" """" " "* "" "" "" "########?????? | | = =%!% ! "##= ="""#????? | | =%! %! [*! "## = ""#????? | | !! ! ! "## ""#????? | | *! ## !!#????? | | % !% = =!! !!#????? | | """"""""""""""""" """"""" [[%"## #????? | | """"""""""""""""""""""""""" !*"## ""!!#????? | | ""###### ################"" ##""""!!#????? | | ""# ##????????#"" #########????? | | ""# X"#????????#"" "#????????????? | | ""# "" "" ##????????#"" "#????????????? | | ""# "" "" X"#??????###"" "###########??? | | ""# " " ######### #"" "## #??? | | "" "" ! #??? | | "" "" =% "## #??? | | ""# " " ######### #" "## #??? | | ""# "" "" ""#??????###"" "## #??? | | ""# "" "" ##????????#"" "###########??? | | ""# X"#????????#"" "#????????????? | | ""# ##????????#"" "#??????###???? | | ""###### ################" "#?? ????? | +----------------------------------------------------+ Best States ------------- Heat Dissipation 25 Energy Generation 18 Energy Capacity 310 Matter Stores 300 Matter Capacity 550 Sight Range 16 Terrain Scan Density 10 Evasion (%) 50 Recoil Reduction 2 Item Schematics ----------------- None Robot Schematics ------------------ None Fabricated ------------ Nothing Repaired ---------- Nothing Alien Tech Used ----------------- None Achievements -------------- None Challenges ------------ None Game ------ Seed PlatingHybridRipteeth Manual? 0 Play Time 00:17:48 Cumulative 84.7 hours Start 2025.08.08 @ 19:38:46 End 2025.08.08 @ 19:54:43 Sessions 1 Manual Loads 0 Difficulty Rogue Special Mode None Game No. 333 Rogue 333 Adventurer 0 Explorer 0 Win Type - Total 0 Types 0/0/0/0/0/0/0/0/0/0 Lore% 35 Gallery% 36 Achievement% 30 Wizard Run 0 Options --------- Layout 2 ASCII 0 Keyboard 0 Movement Mouse Keybinds 0 Fullscreen 2 Font 24/Smallcaps Map View 50x44 Zoom Use 0% Tactical HUD 0 Map Filters NONE Filters NONE Steam 1 RUN: 3a1f6ef4-0df9-4bed-aa33-af716ca7a89b